[Event "FIDE World Junior U20-ch Girls 2025"]
[Site "Petrovac"]
[Date "2025.03.01"]
[Round "5.17"]
[White "Kaliakhmet, Elnaz"]
[Black "Gasparyan, Milena"]
[Result "1-0"]
[Annotator "ChessBase"]
[ECO "D16"]
[WhiteElo "2242"]
[BlackElo "1986"]
[PlyCount "125"]
[EventDate "2025.02.23"]
[EventType "swiss"]
[EventCountry "MNE"]
[SourceTitle "playchess.com"]
[Source "ChessBase"]
[SourceQuality "1"]
[TimeControl "40/5400+30:1800+30"]

1. d4 {[%emt 0:00:02]} d5 {[%emt 0:03:31]} 2. c4 {[%emt 0:00:05]} c6 {[%emt 0:00:04]} 3. Nf3 {[%emt 0:00:17]} Nf6 {[%emt 0:00:05]} 4. Nc3 {[%emt 0:00:03]} dxc4 {[%emt 0:00:07]} 5. a4 {[%emt 0:01:43]} e6 {[%emt 0:00:12]} 6. e3 {[%emt 0:01:18]} c5 {[%emt 0:00:10]} 7. Bxc4 {[%emt 0:00:06]} cxd4 {[%emt 0:00:54]} 8. exd4 {[%emt 0:00:15]} Nc6 {[%emt 0:00:32]} 9. O-O {[%emt 0:00:06]} Be7 {[%emt 0:00:13]} 10. Qe2 {[%emt 0:00:04]} O-O {[%emt 0:00:06]} 11. Rd1 {[%emt 0:00:07]} Nb4 {[%emt 0:00:12]} 12. Bg5 {[%emt 0:00:50]} Re8 {[%emt 0:10:39]} 13. Ne5 {[%emt 0:06:54]} Nfd5 {[%emt 0:06:18]} 14. Bxe7 {[%emt 0:06:49]} Qxe7 {[%emt 0:02:50]} 15. Ne4 {[%emt 0:04:02]} b6 {[%emt 0:09:28]} 16. a5 {[%emt 0:17:20]} f6 {[%emt 0:06:39]} 17. Nf3 {[%emt 0:08:52]} Bb7 {[%emt 0:00:52]} 18. a6 {[%emt 0:07:15]} Bc6 {[%emt 0:00:13]} 19. Re1 {[%emt 0:05:37]} Rac8 {[%emt 0:14:58]} 20. Qd2 {[%emt 0:06:03]} Bd7 {[%emt 0:02:13]} 21. Rac1 {[%emt 0:03:03]} Rc7 {[%emt 0:11:41]} 22. Nc3 {[%emt 0:06:17]} Qd6 {[%emt 0:09:31]} 23. Ne4 {[%emt 0:15:21]} Qf8 {[%emt 0:01:59]} 24. b3 {[%emt 0:03:35]} Rec8 {[%emt 0:01:26]} 25. Rcd1 {[%emt 0:00:14]} Bb5 {[%emt 0:04:09]} 26. Nc5 {[%emt 0:01:56]} bxc5 {[%emt 0:00:20]} 27. Bxb5 {[%emt 0:00:04]} Qd6 {[%emt 0:02:15]} 28. Bc4 {[%emt 0:00:43]} Nxa6 {[%emt 0:03:21]} 29. Qa5 {[%emt 0:03:51]} Nab4 {[%emt 0:00:47]} 30. dxc5 {[%emt 0:00:14]} Qxc5 {[%emt 0:00:32]} 31. Qxc5 {[%emt 0:00:10]} Rxc5 {[%emt 0:00:08]} 32. Rxe6 {[%emt 0:00:05]} Kf8 {[%emt 0:01:40]} 33. Nd4 {[%emt 0:01:18]} Nc3 {[%emt 0:01:49]} 34. Rde1 {[%emt 0:01:02]} Ncd5 {[%emt 0:05:30]} 35. R6e4 {[%emt 0:00:48]} Kf7 {[%emt 0:00:56]} 36. Re7+ {[%emt 0:00:58]} Kg6 {[%emt 0:00:19]} 37. Rxa7 {[%emt 0:00:15]} R5c7 {[%emt 0:01:45]} 38. Rxc7 {[%emt 0:01:01]} Rxc7 {[%emt 0:00:08]} 39. g3 {[%emt 0:00:30]} Nb6 {[%emt 0:00:42]} 40. Bb5 {[%emt 0:00:44]} h5 {[%emt 0:00:22]} 41. Be8+ {[%emt 0:01:34]} Kh6 {[%emt 0:00:14]} 42. h4 {[%emt 0:11:28]} g6 {[%emt 0:00:33]} 43. Re6 {[%emt 0:01:33]} N6d5 {[%emt 0:00:12]} 44. Rd6 {[%emt 0:07:53]} Rc1+ {[%emt 0:06:01]} 45. Kg2 {[%emt 0:00:00]} Rd1 {[%emt 0:01:00]} 46. Nb5 {[%emt 0:00:00]} Kg7 {[%emt 0:01:35]} 47. Bc6 {[%emt 0:09:14]} Nxc6 {[%emt 0:01:13]} 48. Rxc6 {[%emt 0:00:04]} g5 {[%emt 0:06:32]} 49. hxg5 {[%emt 0:01:43]} fxg5 {[%emt 0:00:06]} 50. Nd6 {[%emt 0:00:29]} Rd3 {[%emt 0:02:57]} 51. Nf5+ {[%emt 0:00:06]} Kf7 {[%emt 0:00:12]} 52. Rd6 {[%emt 0:01:14]} h4 {[%emt 0:02:39]} 53. Kg1 {[%emt 0:00:54]} hxg3 {[%emt 0:01:34]} 54. Nxg3 {[%emt 0:00:27]} Nf4 {[%emt 0:06:09]} 55. Rb6 {[%emt 0:00:16]} Rd4 {[%emt 0:00:46]} 56. Nf5 {[%emt 0:00:27]} Rd1+ {[%emt 0:00:16]} 57. Kh2 {[%emt 0:00:01]} Ne6 {[%emt 0:03:37]} 58. Kg3 {[%emt 0:00:31]} Rd3+ {[%emt 0:01:12]} 59. Kg4 {[%emt 0:01:14]} Nc5 {[%emt 0:01:14]} 60. b4 {[%emt 0:00:31]} Ne4 {[%emt 0:00:09]} 61. f3 {[%emt 0:00:21]} Nf2+ {[%emt 0:00:09]} 62. Kxg5 {[%emt 0:00:14]} Rxf3 {[%emt 0:00:17]} 63. Rf6+ {[%emt 0:00:09]} 1-0

[Event "FIDE World Junior U20-ch Girls 2025"]
[Site "Petrovac"]
[Date "2025.03.01"]
[Round "5.18"]
[White "Guo, Hanxi"]
[Black "Mikheeva, Galina"]
[Result "0-1"]
[Annotator "ChessBase"]
[ECO "C54"]
[WhiteElo "1854"]
[BlackElo "2238"]
[PlyCount "96"]
[EventDate "2025.02.23"]
[EventType "swiss"]
[EventCountry "MNE"]
[SourceTitle "playchess.com"]
[Source "ChessBase"]
[SourceQuality "1"]
[TimeControl "40/5400+30:1800+30"]

1. e4 {[%emt 0:00:05]} e5 {[%emt 0:00:03]} 2. Nf3 {[%emt 0:00:05]} Nc6 {[%emt 0:00:05]} 3. Bc4 {[%emt 0:00:03]} Bc5 {[%emt 0:00:10]} 4. c3 {[%emt 0:00:08]} Nf6 {[%emt 0:00:03]} 5. d3 {[%emt 0:00:05]} a6 {[%emt 0:00:24]} 6. a4 {[%emt 0:01:28]} d6 {[%emt 0:01:06]} 7. O-O {[%emt 0:00:54]} Ba7 {[%emt 0:02:10]} 8. Re1 {[%emt 0:07:06]} h6 {[%emt 0:01:48]} 9. h3 {[%emt 0:04:59]} g5 {[%emt 0:04:04]} 10. Nh2 {[%emt 0:07:22]} g4 {[%emt 0:07:23]} 11. hxg4 {[%emt 0:04:21]} Rg8 {[%emt 0:00:04]} 12. g5 {[%emt 0:04:10]} hxg5 {[%emt 0:00:28]} 13. g4 {[%emt 0:01:08]} Qd7 {[%emt 0:04:20]} 14. Kg2 {[%emt 0:06:00]} Nxg4 {[%emt 0:02:34]} 15. Nxg4 {[%emt 0:00:11]} Qxg4+ {[%emt 0:00:08]} 16. Qxg4 {[%emt 0:00:05]} Bxg4 {[%emt 0:00:07]} 17. Rh1 {[%emt 0:01:41]} Nd8 {[%emt 0:08:43]} 18. Nd2 {[%emt 0:03:40]} Ne6 {[%emt 0:14:56]} 19. Bxe6 {[%emt 0:03:28]} Bxe6 {[%emt 0:00:03]} 20. Nf3 {[%emt 0:00:52]} f6 {[%emt 0:04:41]} 21. Rh6 {[%emt 0:06:08]} Kf7 {[%emt 0:02:54]} 22. Bd2 {[%emt 0:01:17]} Bd7 {[%emt 0:07:49]} 23. a5 {[%emt 0:04:21]} Rh8 {[%emt 0:02:56]} 24. Rah1 {[%emt 0:00:24]} Rxh6 {[%emt 0:00:23]} 25. Rxh6 {[%emt 0:00:07]} Kg7 {[%emt 0:00:07]} 26. Rh1 {[%emt 0:00:31]} c6 {[%emt 0:05:22]} 27. d4 {[%emt 0:03:55]} Re8 {[%emt 0:10:11]} 28. dxe5 {[%emt 0:01:04]} dxe5 {[%emt 0:00:01]} 29. Re1 {[%emt 0:07:57]} Be6 {[%emt 0:03:22]} 30. Be3 {[%emt 0:01:09]} Bxe3 {[%emt 0:00:37]} 31. Rxe3 {[%emt 0:00:07]} Rd8 {[%emt 0:00:13]} 32. Re2 {[%emt 0:03:17]} g4 {[%emt 0:05:11]} 33. Nh2 {[%emt 0:00:45]} Kg6 {[%emt 0:02:11]} 34. f3 {[%emt 0:01:01]} gxf3+ {[%emt 0:01:57]} 35. Nxf3 {[%emt 0:01:00]} Rd3 {[%emt 0:04:32]} 36. Rd2 {[%emt 0:04:16]} Re3 {[%emt 0:00:20]} 37. Rd6 {[%emt 0:00:14]} Kf7 {[%emt 0:00:05]} 38. Kf2 {[%emt 0:04:01]} Rxe4 {[%emt 0:00:10]} 39. Rd8 {[%emt 0:00:08]} c5 {[%emt 0:01:21]} 40. Nd2 {[%emt 0:01:11]} Rf4+ {[%emt 0:02:56]} 41. Ke3 {[%emt 0:30:20]} Ke7 {[%emt 0:31:30]} 42. Rh8 {[%emt 0:01:58]} Bd5 {[%emt 0:01:33]} 43. Rc8 {[%emt 0:00:32]} c4 {[%emt 0:00:00]} 44. Rc5 {[%emt 0:00:00]} Kd6 {[%emt 0:00:00]} 45. Rc8 {[%emt 0:00:00]} Bc6 {[%emt 0:00:00]} 46. Rg8 {[%emt 0:00:00]} Kc5 {[%emt 0:00:00]} 47. Rg1 {[%emt 0:00:00]} Kb5 {[%emt 0:00:00]} 48. Ra1 {[%emt 0:00:00]} f5 {[%emt 0:00:00]} 0-1

[Event "FIDE World Junior U20-ch Girls 2025"]
[Site "Petrovac"]
[Date "2025.03.01"]
[Round "5.19"]
[White "Wang, Chuqiao"]
[Black "Sulyok, Eszter"]
[Result "1-0"]
[Annotator "ChessBase"]
[ECO "D30"]
[WhiteElo "2227"]
[BlackElo "2109"]
[PlyCount "103"]
[EventDate "2025.02.23"]
[EventType "swiss"]
[EventCountry "MNE"]
[SourceTitle "playchess.com"]
[Source "ChessBase"]
[SourceQuality "1"]
[TimeControl "40/5400+30:1800+30"]

1. d4 {[%emt 0:00:05]} d5 {[%emt 0:00:04]} 2. c4 {[%emt 0:00:07]} e6 {[%emt 0:00:07]} 3. Nf3 {[%emt 0:00:14]} c6 {[%emt 0:00:07]} 4. e3 {[%emt 0:00:09]} Nf6 {[%emt 0:00:06]} 5. b3 {[%emt 0:00:13]} Ne4 {[%emt 0:00:14]} 6. Qc2 {[%emt 0:03:10]} Bb4+ {[%emt 0:01:14]} 7. Nbd2 {[%emt 0:00:37]} f5 {[%emt 0:02:01]} 8. Bd3 {[%emt 0:03:27]} Nd7 {[%emt 0:01:24]} 9. a4 {[%emt 0:05:22]} Qf6 {[%emt 0:04:02]} 10. Ba3 {[%emt 0:02:42]} Be7 {[%emt 0:06:19]} 11. Bxe7 {[%emt 0:02:16]} Qxe7 {[%emt 0:00:14]} 12. Rb1 {[%emt 0:02:19]} g5 {[%emt 0:10:08]} 13. Ng1 {[%emt 0:04:08]} g4 {[%emt 0:07:07]} 14. Ne2 {[%emt 0:05:55]} Qh4 {[%emt 0:11:19]} 15. Bxe4 {[%emt 0:02:57]} fxe4 {[%emt 0:01:00]} 16. g3 {[%emt 0:07:48]} Qf6 {[%emt 0:01:54]} 17. h4 {[%emt 0:03:49]} h5 {[%emt 0:05:42]} 18. cxd5 {[%emt 0:03:37]} exd5 {[%emt 0:01:34]} 19. b4 {[%emt 0:01:55]} b6 {[%emt 0:08:42]} 20. O-O {[%emt 0:01:56]} Nf8 {[%emt 0:01:27]} 21. Nf4 {[%emt 0:01:55]} Ng6 {[%emt 0:00:20]} 22. Nxg6 {[%emt 0:03:29]} Qxg6 {[%emt 0:01:51]} 23. Rfc1 {[%emt 0:00:33]} Bd7 {[%emt 0:00:34]} 24. a5 {[%emt 0:03:55]} O-O {[%emt 0:06:01]} 25. axb6 {[%emt 0:01:48]} axb6 {[%emt 0:00:04]} 26. Ra1 {[%emt 0:00:35]} Rab8 {[%emt 0:02:21]} 27. Ra7 {[%emt 0:02:20]} Rf7 {[%emt 0:08:05]} 28. Rf1 {[%emt 0:07:26]} Qd6 {[%emt 0:00:00]} 29. Qb2 {[%emt 0:03:30]} Rbf8 {[%emt 0:00:00]} 30. Kg2 {[%emt 0:01:04]} Rf5 {[%emt 0:00:00]} 31. Nb1 {[%emt 0:02:03]} R8f7 {[%emt 0:02:38]} 32. Nc3 {[%emt 0:00:41]} Qf6 {[%emt 0:00:17]} 33. Rb7 {[%emt 0:01:24]} Rf3 {[%emt 0:00:46]} 34. Qe2 {[%emt 0:00:25]} b5 {[%emt 0:01:33]} 35. Qe1 {[%emt 0:00:56]} Qd8 {[%emt 0:01:51]} 36. Ra7 {[%emt 0:01:04]} Qb8 {[%emt 0:00:26]} 37. Ra2 {[%emt 0:01:18]} c5 {[%emt 0:06:25]} 38. bxc5 {[%emt 0:05:57]} b4 {[%emt 0:00:14]} 39. Rb2 {[%emt 0:00:27]} Bb5 {[%emt 0:00:58]} 40. Nxb5 {[%emt 0:00:18]} Qxb5 {[%emt 0:00:11]} 41. Rxb4 {[%emt 0:30:27]} Qd3 {[%emt 0:31:04]} 42. Rb2 {[%emt 0:00:23]} Qc4 {[%emt 0:00:14]} 43. Qe2 {[%emt 0:00:15]} Qxe2 {[%emt 0:07:16]} 44. Rxe2 {[%emt 0:00:03]} Kf8 {[%emt 0:00:34]} 45. Ra1 {[%emt 0:00:06]} Ke7 {[%emt 0:02:37]} 46. Rb2 {[%emt 0:00:05]} Kd8 {[%emt 0:00:00]} 47. Ra8+ {[%emt 0:00:00]} Kc7 {[%emt 0:00:00]} 48. Ra7+ {[%emt 0:00:00]} Kc8 {[%emt 0:00:00]} 49. Rxf7 {[%emt 0:00:00]} Rxf7 {[%emt 0:00:00]} 50. Rb6 {[%emt 0:00:00]} Kc7 {[%emt 0:00:00]} 51. Rh6 {[%emt 0:00:00]} Rf5 {[%emt 0:00:00]} 52. Rg6 {[%emt 0:00:00]} 1-0

[Event "FIDE World Junior U20-ch Girls 2025"]
[Site "Petrovac"]
[Date "2025.03.01"]
[Round "5.20"]
[White "Kirtadze, Anastasia"]
[Black "Avetisyan, Ani"]
[Result "1-0"]
[Annotator "ChessBase"]
[ECO "B12"]
[WhiteElo "2218"]
[BlackElo "1904"]
[PlyCount "65"]
[EventDate "2025.02.23"]
[EventType "swiss"]
[EventCountry "MNE"]
[SourceTitle "playchess.com"]
[Source "ChessBase"]
[SourceQuality "1"]
[TimeControl "40/5400+30:1800+30"]

1. e4 {[%emt 0:00:01]} c6 {[%emt 0:00:07]} 2. d4 {[%emt 0:00:11]} d5 {[%emt 0:00:11]} 3. e5 {[%emt 0:00:05]} Bf5 {[%emt 0:01:01]} 4. h4 {[%emt 0:00:11]} h5 {[%emt 0:01:09]} 5. Bd3 {[%emt 0:00:16]} Bxd3 {[%emt 0:00:25]} 6. Qxd3 {[%emt 0:00:02]} Qa5+ {[%emt 0:01:24]} 7. Nd2 {[%emt 0:00:10]} e6 {[%emt 0:01:20]} 8. Ngf3 {[%emt 0:00:40]} Ne7 {[%emt 0:03:04]} 9. O-O {[%emt 0:01:09]} Nf5 {[%emt 0:01:28]} 10. Nb3 {[%emt 0:02:30]} Qa6 {[%emt 0:02:07]} 11. Qd1 {[%emt 0:00:38]} Nd7 {[%emt 0:00:55]} 12. Bg5 {[%emt 0:05:28]} c5 {[%emt 0:05:03]} 13. dxc5 {[%emt 0:04:58]} Nxc5 {[%emt 0:00:24]} 14. Nfd2 {[%emt 0:14:03]} Rc8 {[%emt 0:11:22]} 15. Qf3 {[%emt 0:06:44]} Be7 {[%emt 0:10:38]} 16. Bxe7 {[%emt 0:04:41]} Kxe7 {[%emt 0:00:40]} 17. g3 {[%emt 0:04:49]} Nd7 {[%emt 0:08:24]} 18. Qf4 {[%emt 0:04:35]} Kf8 {[%emt 0:07:32]} 19. Rfc1 {[%emt 0:04:19]} g6 {[%emt 0:06:53]} 20. c4 {[%emt 0:02:39]} dxc4 {[%emt 0:02:09]} 21. Rxc4 {[%emt 0:07:16]} Kg7 {[%emt 0:03:04]} 22. Rac1 {[%emt 0:07:41]} Rxc4 {[%emt 0:02:57]} 23. Rxc4 {[%emt 0:00:41]} Nb6 {[%emt 0:01:16]} 24. Nc5 {[%emt 0:03:48]} Qb5 {[%emt 0:03:59]} 25. Nxe6+ {[%emt 0:09:35]} fxe6 {[%emt 0:01:28]} 26. Rc7+ {[%emt 0:00:59]} Nd7 {[%emt 0:04:23]} 27. Ne4 {[%emt 0:07:57]} Rf8 {[%emt 0:02:42]} 28. Nc5 {[%emt 0:01:19]} Qb6 {[%emt 0:10:16]} 29. Rxd7+ {[%emt 0:01:03]} Rf7 {[%emt 0:00:04]} 30. Qg5 {[%emt 0:01:28]} Rxd7 {[%emt 0:08:06]} 31. Qf6+ {[%emt 0:01:08]} Kh7 {[%emt 0:00:32]} 32. Nxd7 {[%emt 0:00:11]} Ng7 {[%emt 0:00:44]} 33. Nxb6 {[%emt 0:00:10]} 1-0

[Event "FIDE World Junior U20-ch Girls 2025"]
[Site "Petrovac"]
[Date "2025.03.01"]
[Round "5.21"]
[White "Peglau, Charis"]
[Black "Zeliantsova, Kseniya"]
[Result "0-1"]
[Annotator "ChessBase"]
[ECO "A41"]
[WhiteElo "2203"]
[BlackElo "1999"]
[PlyCount "66"]
[EventDate "2025.02.23"]
[EventType "swiss"]
[EventCountry "MNE"]
[SourceTitle "playchess.com"]
[Source "ChessBase"]
[SourceQuality "1"]
[TimeControl "40/5400+30:1800+30"]

1. d4 {[%emt 0:00:02]} d6 {[%emt 0:00:09]} 2. Nf3 {[%emt 0:00:11]} g6 {[%emt 0:00:10]} 3. c4 {[%emt 0:00:12]} Bg7 {[%emt 0:00:08]} 4. Nc3 {[%emt 0:00:08]} Nd7 {[%emt 0:00:53]} 5. e4 {[%emt 0:01:47]} e5 {[%emt 0:00:16]} 6. Be3 {[%emt 0:00:31]} Ne7 {[%emt 0:00:53]} 7. c5 {[%emt 0:07:33]} O-O {[%emt 0:08:51]} 8. cxd6 {[%emt 0:02:12]} cxd6 {[%emt 0:00:05]} 9. Bc4 {[%emt 0:04:51]} Nc6 {[%emt 0:08:03]} 10. O-O {[%emt 0:04:35]} Nb6 {[%emt 0:02:57]} 11. Bb3 {[%emt 0:01:05]} Bg4 {[%emt 0:01:04]} 12. d5 {[%emt 0:03:35]} Nd4 {[%emt 0:06:57]} 13. Bxd4 {[%emt 0:09:27]} exd4 {[%emt 0:01:22]} 14. Nb5 {[%emt 0:00:19]} f5 {[%emt 0:07:22]} 15. h3 {[%emt 0:15:26]} fxe4 {[%emt 0:02:13]} 16. hxg4 {[%emt 0:00:07]} exf3 {[%emt 0:00:06]} 17. gxf3 {[%emt 0:09:26]} Rf4 {[%emt 0:13:49]} 18. Rc1 {[%emt 0:12:01]} Qh4 {[%emt 0:01:21]} 19. Kg2 {[%emt 0:03:27]} Raf8 {[%emt 0:01:00]} 20. Qe2 {[%emt 0:20:49]} Rxf3 {[%emt 0:07:14]} 21. Qxf3 {[%emt 0:00:09]} Rxf3 {[%emt 0:00:04]} 22. Kxf3 {[%emt 0:00:04]} Qh3+ {[%emt 0:00:09]} 23. Ke2 {[%emt 0:00:12]} Qxg4+ {[%emt 0:00:20]} 24. f3 {[%emt 0:01:41]} Qf4 {[%emt 0:03:05]} 25. Kd3 {[%emt 0:01:40]} Qe3+ {[%emt 0:04:43]} 26. Kc2 {[%emt 0:00:03]} d3+ {[%emt 0:02:27]} 27. Kb1 {[%emt 0:00:05]} d2 {[%emt 0:00:03]} 28. Rcd1 {[%emt 0:01:13]} Qd3+ {[%emt 0:00:05]} 29. Ka1 {[%emt 0:00:11]} Qxb5 {[%emt 0:00:06]} 30. Rf2 {[%emt 0:00:27]} a5 {[%emt 0:00:43]} 31. Rdxd2 {[%emt 0:00:59]} a4 {[%emt 0:00:06]} 32. Bd1 {[%emt 0:01:22]} Nc4 {[%emt 0:00:16]} 33. Rc2 {[%emt 0:00:46]} a3 {[%emt 0:00:51]} 0-1

[Event "FIDE World Junior U20-ch Girls 2025"]
[Site "Petrovac"]
[Date "2025.03.01"]
[Round "5.22"]
[White "Beber, Anja"]
[Black "Pipiras, Filipa Fortuna"]
[Result "0-1"]
[Annotator "NA"]
[ECO "A13"]
[WhiteElo "1988"]
[BlackElo "2200"]
[PlyCount "84"]
[EventDate "2025.02.23"]
[EventType "swiss"]
[EventCountry "MNE"]
[SourceTitle "playchess.com"]
[Source "ChessBase"]
[SourceQuality "1"]
[TimeControl "40/5400+30:1800+30"]

1. Nf3 {[%emt 0:00:05]} d5 {[%emt 0:03:05]} 2. e3 {[%emt 0:00:19]} Nf6 {[%emt 0:00:26]} 3. c4 {[%emt 0:00:12]} e6 {[%emt 0:00:11]} 4. b3 {[%emt 0:00:19]} c5 {[%emt 0:00:23]} 5. Bb2 {[%emt 0:00:17]} Nc6 {[%emt 0:00:13]} 6. cxd5 {[%emt 0:07:21]} exd5 {[%emt 0:00:09]} 7. d4 {[%emt 0:00:07]} cxd4 {[%emt 0:00:37]} 8. exd4 {[%emt 0:00:29]} Bb4+ {[%emt 0:04:13]} 9. Nbd2 {[%emt 0:02:21]} O-O {[%emt 0:13:07]} 10. Be2 {[%emt 0:00:15]} Ne4 {[%emt 0:08:17]} 11. O-O {[%emt 0:12:52]} Nc3 {[%emt 0:17:40]} 12. Bxc3 {[%emt 0:01:06]} Bxc3 {[%emt 0:00:06]} 13. Rc1 {[%emt 0:00:07]} Bb4 {[%emt 0:00:19]} 14. Qc2 {[%emt 0:03:23]} Qf6 {[%emt 0:02:23]} 15. Qb2 {[%emt 0:13:11]} Bg4 {[%emt 0:06:47]} 16. Rcd1 {[%emt 0:21:09]} Rfe8 {[%emt 0:17:36]} 17. Nb1 {[%emt 0:10:26]} Qf4 {[%emt 0:02:13]} 18. Rd3 {[%emt 0:08:55]} Bd6 {[%emt 0:04:47]} 19. g3 {[%emt 0:00:52]} Qh6 {[%emt 0:00:22]} 20. a3 {[%emt 0:02:48]} Re6 {[%emt 0:07:18]} 21. Nc3 {[%emt 0:02:37]} Rae8 {[%emt 0:00:15]} 22. Rfd1 {[%emt 0:05:25]} Qh5 {[%emt 0:02:04]} 23. R1d2 {[%emt 0:04:11]} Rh6 {[%emt 0:05:56]} 24. h4 {[%emt 0:00:29]} Rxe2 {[%emt 0:02:17]} 25. Rxe2 {[%emt 0:00:38]} Bxf3 {[%emt 0:00:37]} 26. Re8+ {[%emt 0:01:13]} Bf8 {[%emt 0:00:00]} 27. Ree3 {[%emt 0:00:44]} Bg4 {[%emt 0:00:00]} 28. f3 {[%emt 0:01:34]} Be6 {[%emt 0:00:09]} 29. Qg2 {[%emt 0:00:16]} Rg6 {[%emt 0:00:39]} 30. Ne2 {[%emt 0:00:28]} Bd6 {[%emt 0:00:10]} 31. Kf2 {[%emt 0:00:46]} Ne7 {[%emt 0:00:14]} 32. f4 {[%emt 0:00:37]} Nf5 {[%emt 0:00:43]} 33. Rf3 {[%emt 0:00:36]} Nh6 {[%emt 0:00:56]} 34. Ke1 {[%emt 0:00:13]} Bf5 {[%emt 0:00:21]} 35. Rc3 {[%emt 0:00:37]} Be4 {[%emt 0:00:14]} 36. Qf1 {[%emt 0:00:48]} Bxf3 {[%emt 0:00:17]} 37. Rxf3 {[%emt 0:00:06]} Qf5 {[%emt 0:00:32]} 38. Kd2 {[%emt 0:00:29]} Bxa3 {[%emt 0:00:21]} 39. Nc3 {[%emt 0:00:16]} a6 {[%emt 0:00:42]} 40. Qa1 {[%emt 0:00:14]} Bf8 {[%emt 0:00:36]} 41. Qa5 {[%emt 0:30:36]} Qd7 {[%emt 0:04:19]} 42. Re3 {[%emt 0:00:00]} Nf5 {[%emt 0:03:16]} 0-1

[Event "FIDE World Junior U20-ch Girls 2025"]
[Site "Petrovac"]
[Date "2025.03.01"]
[Round "5.24"]
[White "Braeutigam, Katerina"]
[Black "Tashkinova, Sofiia"]
[Result "0-1"]
[Annotator "ChessBase"]
[ECO "B20"]
[WhiteElo "1981"]
[BlackElo "2197"]
[PlyCount "70"]
[EventDate "2025.02.23"]
[EventType "swiss"]
[EventCountry "MNE"]
[SourceTitle "playchess.com"]
[Source "ChessBase"]
[SourceQuality "1"]
[TimeControl "40/5400+30:1800+30"]

1. e4 {[%emt 0:00:02]} c5 {[%emt 0:02:32]} 2. b3 {[%emt 0:00:06]} Nc6 {[%emt 0:03:08]} 3. Bb2 {[%emt 0:00:05]} d6 {[%emt 0:03:31]} 4. Bb5 {[%emt 0:03:06]} Bd7 {[%emt 0:02:29]} 5. Nf3 {[%emt 0:01:37]} a6 {[%emt 0:04:37]} 6. Be2 {[%emt 0:01:23]} e5 {[%emt 0:02:03]} 7. a4 {[%emt 0:02:26]} g6 {[%emt 0:03:24]} 8. Nc3 {[%emt 0:03:26]} Nge7 {[%emt 0:02:17]} 9. Bc4 {[%emt 0:06:48]} h6 {[%emt 0:04:42]} 10. O-O {[%emt 0:02:33]} Bg7 {[%emt 0:02:14]} 11. Ne1 {[%emt 0:07:49]} O-O {[%emt 0:05:01]} 12. f4 {[%emt 0:08:56]} Qc8 {[%emt 0:04:02]} 13. d3 {[%emt 0:15:31]} Nd4 {[%emt 0:13:33]} 14. Qd2 {[%emt 0:09:18]} Be6 {[%emt 0:04:10]} 15. Ne2 {[%emt 0:16:58]} Qd7 {[%emt 0:13:21]} 16. Nxd4 {[%emt 0:07:54]} cxd4 {[%emt 0:01:44]} 17. Ba3 {[%emt 0:06:37]} b5 {[%emt 0:05:59]} 18. Bxe6 {[%emt 0:01:09]} fxe6 {[%emt 0:00:48]} 19. fxe5 {[%emt 0:01:02]} Bxe5 {[%emt 0:04:16]} 20. Qxh6 {[%emt 0:02:13]} Rxf1+ {[%emt 0:01:05]} 21. Kxf1 {[%emt 0:00:01]} Rf8+ {[%emt 0:01:34]} 22. Nf3 {[%emt 0:00:11]} Qc7 {[%emt 0:06:32]} 23. Ra2 {[%emt 0:01:04]} bxa4 {[%emt 0:01:26]} 24. bxa4 {[%emt 0:00:23]} Bf4 {[%emt 0:03:08]} 25. Qh3 {[%emt 0:00:09]} Rf6 {[%emt 0:00:21]} 26. Ke2 {[%emt 0:01:38]} e5 {[%emt 0:02:20]} 27. Qh4 {[%emt 0:00:19]} Kg7 {[%emt 0:00:37]} 28. Ng5 {[%emt 0:01:00]} Bxg5 {[%emt 0:00:09]} 29. Qxg5 {[%emt 0:00:05]} Nc8 {[%emt 0:00:32]} 30. Qg3 {[%emt 0:01:00]} Rf8 {[%emt 0:01:20]} 31. Rb2 {[%emt 0:00:37]} Nb6 {[%emt 0:00:52]} 32. Qe1 {[%emt 0:00:30]} Nxa4 {[%emt 0:00:18]} 33. Rb4 {[%emt 0:00:29]} Qxc2+ {[%emt 0:00:12]} 34. Qd2 {[%emt 0:00:09]} Rf2+ {[%emt 0:00:38]} 35. Kxf2 {[%emt 0:00:34]} Qxd2+ {[%emt 0:00:03]} 0-1

[Event "FIDE World Junior U20-ch Girls 2025"]
[Site "Petrovac"]
[Date "2025.03.01"]
[Round "5.25"]
[White "Karacsonyi, Kata"]
[Black "Shohradova, Leyla"]
[Result "0-1"]
[Annotator "ChessBase"]
[ECO "C00"]
[WhiteElo "2191"]
[BlackElo "1986"]
[PlyCount "64"]
[EventDate "2025.02.23"]
[EventType "swiss"]
[EventCountry "MNE"]
[SourceTitle "playchess.com"]
[Source "ChessBase"]
[SourceQuality "1"]
[TimeControl "40/5400+30:1800+30"]

1. e4 {[%emt 0:01:41]} e6 {[%emt 0:00:04]} 2. d4 {[%emt 0:00:06]} d5 {[%emt 0:00:03]} 3. Bd3 {[%emt 0:00:07]} c5 {[%emt 0:02:04]} 4. exd5 {[%emt 0:00:13]} Qxd5 {[%emt 0:02:11]} 5. Nc3 {[%emt 0:05:22]} Qd8 {[%emt 0:07:17]} 6. dxc5 {[%emt 0:00:16]} Bxc5 {[%emt 0:01:55]} 7. Nf3 {[%emt 0:00:08]} Nf6 {[%emt 0:01:19]} 8. Qe2 {[%emt 0:00:13]} Nbd7 {[%emt 0:01:52]} 9. Bf4 {[%emt 0:14:16]} a6 {[%emt 0:12:22]} 10. O-O-O {[%emt 0:01:20]} Qe7 {[%emt 0:04:46]} 11. g4 {[%emt 0:17:13]} Nxg4 {[%emt 0:12:51]} 12. Ne4 {[%emt 0:00:13]} Ngf6 {[%emt 0:11:22]} 13. Nxc5 {[%emt 0:02:11]} Qxc5 {[%emt 0:00:10]} 14. Rhg1 {[%emt 0:18:19]} Nd5 {[%emt 0:06:19]} 15. Bd2 {[%emt 0:03:26]} g6 {[%emt 0:02:43]} 16. Kb1 {[%emt 0:02:44]} b5 {[%emt 0:04:14]} 17. c4 {[%emt 0:02:18]} bxc4 {[%emt 0:01:00]} 18. Bxc4 {[%emt 0:00:07]} Bb7 {[%emt 0:00:49]} 19. Rc1 {[%emt 0:05:32]} Qd6 {[%emt 0:03:49]} 20. Bh6 {[%emt 0:07:04]} f6 {[%emt 0:04:47]} 21. Nd2 {[%emt 0:06:22]} Kf7 {[%emt 0:05:08]} 22. f4 {[%emt 0:03:08]} Rhe8 {[%emt 0:04:52]} 23. Ne4 {[%emt 0:00:45]} Qe7 {[%emt 0:01:28]} 24. Bb3 {[%emt 0:03:50]} Rac8 {[%emt 0:01:15]} 25. Rcd1 {[%emt 0:00:17]} N7b6 {[%emt 0:05:13]} 26. h4 {[%emt 0:00:57]} Qb4 {[%emt 0:00:55]} 27. Ng5+ {[%emt 0:01:44]} fxg5 {[%emt 0:01:12]} 28. Qe5 {[%emt 0:01:34]} Nf6 {[%emt 0:00:55]} 29. Rd4 {[%emt 0:02:50]} Qc5 {[%emt 0:00:44]} 30. Bxg5 {[%emt 0:00:37]} Be4+ {[%emt 0:00:59]} 31. Rxe4 {[%emt 0:00:26]} Nxe4 {[%emt 0:00:25]} 32. Qxc5 {[%emt 0:00:55]} Rxc5 {[%emt 0:00:13]} 0-1